Workbook

Sheet RELEVÉS
A1: 08:48:00 | K1: J | N1: N | Q1: W | AL1: AG | AO1: AK | AV1: AX | AW1: AX
B2: Pression mini | E2: Pression maxi | H2: Température ressentie | K2: Température mini | N2: Température maxi | Q2: Vent en Km/h | AB2: Humidité H% | AL2: Pluie | AO2: Temps de pluie | AV2: Sonde Soleil
B3: mini | D3: heure | E3: maxi | G3: heure | H3: mini | J3: heure | K3: mini | M3: heure | N3: maxi | P3: heure | Q3: maxi | S3: Heure | U3: Moyenne | X3: Sens | Z3: Sens | AB3: Mini | AD3: Heure | AF3: Maxi | AH3: Heure | AJ3: Moy | AK3: mm | AM3: Heure | AO3: AK | AV3: =W1450/60/1440 -> 0.54375
AO4: 0 à 7h | AQ4: 7 à 12h | AS4: 12 à 19h | AU4: 19h à 24h
B5: =MIN(H9:H1448) -> 1022.3 | D5: =VLOOKUP($B5,$H$9:$Q$1448,10,0) -> 19:34:00 | E5: =MAX(H9:H1448) -> 1025.1 | G5: =VLOOKUP($E5,$H$9:$Q$1448,10,0) -> 01:20:00 | H5: =MAX($B$9:$B$1448) -> 23.3 | J5: =VLOOKUP($H5,$D$9:$Q$1448,14,0) -> 16:08:00 | K5: =MIN($B$9:$B$1448) -> 17 | M5: =VLOOKUP($K5,$B$9:$Q$1448,16,0) -> 03:50:00 | N5: =MAX(B9:B1448) -> 23.3 | P5: =VLOOKUP($N5,$B$9:$Q$1448,16,0) -> 16:08:00 | Q5: =MAX(E9:F1448) -> 29.5 | S5: =VLOOKUP($Q5,$F$9:$Q$1448,12,0) -> 17:23:00 | U5: =AVERAGE(F9:F1448) -> 8.432361111 | Z5: ONO | AB5: =MIN(C9:C1448) -> 68 | AD5: =VLOOKUP($AB5,$C$9:$Q$1448,15,0) -> 20:10:00 | AF5: =MAX(C9:C1448) -> 95 | AH5: =VLOOKUP($AF5,$C$9:$Q$1448,15,0) -> 06:27:00 | AJ5: =AVERAGE(C9:C1448) -> 83.07152778 | AK5: =MAX($K$9:$K$1448) -> 0 | AM5: =(U1450/60)/1440 -> 00:00:00 | AO5: =AO6+AQ6 -> 00:00:00 | AS5: =AS6+AU6 -> 00:00:00
AO6: =SUM(U9:U428)/60/1440 -> 00:00:00 | AQ6: =SUM(U429:U728)/60/1440 -> 00:00:00 | AS6: =SUM(U729:U1148)/60/1440 -> 00:00:00 | AU6: =SUM(U1148:U1448)/60/1440 -> 00:00:00
B7: 5 | C7: 6 | D7: 8 | E7: 9 | F7: 10 | G7: 11 | H7: 13 | I7: 14 | J7: 15 | K7: 16 | O7: Sonde N | P7: Sonde S | X7: Début
B8: T° Ext | C8: H% Ext | D8: Ressentie | E8: Vent | F8: Rafale | G8: Sens | H8: Pression | I8: UV | J8: Pluie 1h | K8: Jour | L8: Semaine | M8: Mois | N8: Année | O8: CH1 | P8: CH2 | Q8: Heures | R8: Date | S8: Maxi | T8: Graph | U8: Pluie | W8: Soleil | X8: Fin | Z8: Soleil
B9: 19 | C9: 85 | D9: 19 | E9: 6.1 | F9: 7.2 | G9: 286 | H9: 1024.4 | I9: 0 | J9: 0 | K9: 0 | L9: 0 | M9: 5.6 | N9: 206.3 | O9: 17.8 | P9: 18.3 | Q9: 00:00:00 | R9: 20220731 | Z9: N | AD9: 0 | AE9: 0
B10: 18.9 | C10: 85 | D10: 18.9 | E10: 5.4 | F10: 7.2 | G10: 256 | H10: 1024.5 | I10: 0 | J10: 0 | K10: 0 | L10: 0 | M10: 5.6 | N10: 206.3 | O10: 17.8 | P10: 18.3 | Q10: 00:01:00 | U10: =IF(J10>0,60,"") ->  | Z10: N | AB10: 0 | AD10: 11 | AE10: 22
B11: 18.9 | C11: 86 | D11: 18.9 | E11: 6.8 | F11: 7.2 | G11: 321 | H11: 1024.6 | I11: 0 | J11: 0 | K11: 0 | L11: 0 | M11: 5.6 | N11: 206.3 | O11: 17.8 | P11: 18.3 | Q11: 00:02:00 | U11: =IF(J11>0,60,"") ->  | Z11: NNE | AB11: 22.5 | AD11: =AB11+$AD$10 -> 33.5 | AE11: 45 | AM11: Aide mémoire
B12: 18.9 | C12: 86 | D12: 18.9 | E12: 5 | F12: 5.4 | G12: 328 | H12: 1024.5 | I12: 0 | J12: 0 | K12: 0 | L12: 0 | M12: 5.6 | N12: 206.3 | O12: 17.8 | P12: 18.3 | Q12: 00:03:00 | U12: =IF(J12>0,60,"") ->  | Z12: NE | AB12: 45 | AD12: 56 | AE12: 67 | AK12: Pluie | AM12: =SOMME(K9:K1448)
B13: 18.9 | C13: 86 | D13: 18.9 | E13: 4.7 | F13: 7.2 | G13: 302 | H13: 1024.5 | I13: 0 | J13: 0 | K13: 0 | L13: 0 | M13: 5.6 | N13: 206.3 | O13: 17.8 | P13: 18.2 | Q13: 00:04:00 | Z13: ENE | AB13: 67.5 | AD13: 78.5 | AE13: 90
B14: 18.9 | C14: 86 | D14: 18.9 | E14: 7.6 | F14: 13 | G14: 262 | H14: 1024.7 | I14: 0 | J14: 0 | K14: 0 | L14: 0 | M14: 5.6 | N14: 206.3 | O14: 17.8 | P14: 18.2 | Q14: 00:05:00 | AB14: 90 | AD14: 101 | AE14: 112 | AK14: Commentaires | AO14: =SOMME(U9:U1448)
B15: 18.9 | C15: 86 | D15: 18.9 | E15: 6.5 | F15: 9.4 | G15: 254 | H15: 1024.8 | I15: 0 | J15: 0 | K15: 0 | L15: 0 | M15: 5.6 | N15: 206.3 | O15: 17.8 | P15: 18.2 | Q15: 00:06:00 | Z15: ESE | AB15: 112.5 | AD15: 123.5 | AE15: 135
B16: 18.9 | C16: 86 | D16: 18.9 | E16: 4.7 | F16: 11.2 | G16: 292 | H16: 1024.5 | I16: 0 | J16: 0 | K16: 0 | L16: 0 | M16: 5.6 | N16: 206.3 | O16: 17.8 | P16: 18.2 | Q16: 00:07:00 | Z16: SSE | AB16: 135 | AD16: 146 | AE16: 157 | AK16: Soleil | AM16: =SOMME(W9:W1448)
B17: 18.9 | C17: 86 | D17: 18.9 | E17: 7.6 | F17: 9.4 | G17: 278 | H17: 1024.8 | I17: 0 | J17: 0 | K17: 0 | L17: 0 | M17: 5.6 | N17: 206.3 | O17: 17.8 | P17: 18.2 | Q17: 00:08:00 | Z17: SE | AB17: 157.5 | AD17: 168.5 | AE17: 180 | AK17: Soleil | AM17: =W1450/60/1440
B18: 18.9 | C18: 86 | D18: 18.9 | E18: 3.6 | F18: 5.4 | G18: 284 | H18: 1024.6 | I18: 0 | J18: 0 | K18: 0 | L18: 0 | M18: 5.6 | N18: 206.3 | O18: 17.7 | P18: 18.2 | Q18: 00:09:00 | Z18: S | AB18: 180 | AD18: 191 | AE18: 202
B19: 18.9 | C19: 86 | D19: 18.9 | E19: 4.7 | F19: 5.4 | G19: 64 | H19: 1024.4 | I19: 0 | J19: 0 | K19: 0 | L19: 0 | M19: 5.6 | N19: 206.3 | O19: 17.7 | P19: 18.2 | Q19: 00:10:00 | Z19: SSO | AB19: 202.5 | AD19: 213.5 | AE19: 225 | AK19: Vues
B20: 18.9 | C20: 86 | D20: 18.9 | E20: 5 | F20: 5.4 | G20: 311 | H20: 1024.5 | I20: 0 | J20: 0 | K20: 0 | L20: 0 | M20: 5.6 | N20: 206.3 | O20: 17.7 | P20: 18.1 | Q20: 00:11:00 | Z20: SO | AB20: 225 | AD20: 236 | AE20: 247 | AJ20: 2022-07-04 | AK20: 1516
B21: 18.8 | C21: 86 | D21: 18.8 | E21: 4.7 | F21: 9.4 | G21: 279 | H21: 1024.5 | I21: 0 | J21: 0 | K21: 0 | L21: 0 | M21: 5.6 | N21: 206.3 | O21: 17.7 | P21: 18.1 | Q21: 00:12:00 | Z21: OSO | AB21: 247.5 | AD21: 258.5 | AE21: 270 | AJ21: 2022-07-10 | AK21: 1541 | AM21: =AK21-AK20 -> 25
B22: 18.8 | C22: 86 | D22: 18.8 | E22: 5.4 | F22: 7.2 | G22: 329 | H22: 1024.5 | I22: 0 | J22: 0 | K22: 0 | L22: 0 | M22: 5.6 | N22: 206.3 | O22: 17.7 | P22: 18.1 | Q22: 00:13:00 | Z22: O | AB22: 270 | AD22: 281 | AE22: 292 | AJ22: 2022-07-17 | AK22: 1571 | AM22: =AK22-AK21 -> 30
B23: 18.8 | C23: 86 | D23: 18.8 | E23: 4 | F23: 5.4 | G23: 247 | H23: 1024.7 | I23: 0 | J23: 0 | K23: 0 | L23: 0 | M23: 5.6 | N23: 206.3 | O23: 17.7 | P23: 18.1 | Q23: 00:14:00 | Z23: ONO | AB23: 292.5 | AD23: 303.5 | AE23: 315 | AJ23: 2022-07-24 | AK23: 1612 | AM23: =AK23-AK22 -> 41
B24: 18.8 | C24: 86 | D24: 18.8 | E24: 4.7 | F24: 5.4 | G24: 296 | H24: 1024.6 | I24: 0 | J24: 0 | K24: 0 | L24: 0 | M24: 5.6 | N24: 206.3 | O24: 17.7 | P24: 18.1 | Q24: 00:15:00 | Z24: NO | AB24: 315 | AD24: 326 | AE24: 337 | AJ24: 2022-07-31 | AK24: 1640 | AM24: =AK24-AK23 -> 28
B25: 18.8 | C25: 86 | D25: 18.8 | E25: 6.5 | F25: 11.2 | G25: 350 | H25: 1024.6 | I25: 0 | J25: 0 | K25: 0 | L25: 0 | M25: 5.6 | N25: 206.3 | O25: 17.7 | P25: 18.1 | Q25: 00:16:00 | Z25: NNO | AB25: 337.5 | AD25: 348.5 | AE25: 349
B26: 18.8 | C26: 86 | D26: 18.8 | E26: 4 | F26: 5.4 | G26: 330 | H26: 1024.6 | I26: 0 | J26: 0 | K26: 0 | L26: 0 | M26: 5.6 | N26: 206.3 | O26: 17.7 | P26: 18 | Q26: 00:17:00 | Z26: N | AB26: 349 | AD26: 360
B27: 18.8 | C27: 86 | D27: 18.8 | E27: 2.9 | F27: 3.6 | G27: 338 | H27: 1024.4 | I27: 0 | J27: 0 | K27: 0 | L27: 0 | M27: 5.6 | N27: 206.3 | O27: 17.6 | P27: 18 | Q27: 00:18:00
B28: 18.8 | C28: 86 | D28: 18.8 | E28: 3.6 | F28: 5.4 | G28: 0 | H28: 1024.6 | I28: 0 | J28: 0 | K28: 0 | L28: 0 | M28: 5.6 | N28: 206.3 | O28: 17.6 | P28: 18 | Q28: 00:19:00 | AD28: =INDEX($Z$9:$Z$26,IF(ISNA(MATCH($AD$30,$AD$9:$AD$26,0)),MATCH($AD$30,$AD$9:$AD$26,1)+1,MATCH($AD$30,$AD$9:$AD$26,0)),1) -> O
B29: 18.8 | C29: 86 | D29: 18.8 | E29: 5.8 | F29: 7.2 | G29: 302 | H29: 1024.5 | I29: 0 | J29: 0 | K29: 0 | L29: 0 | M29: 5.6 | N29: 206.3 | O29: 17.6 | P29: 18 | Q29: 00:20:00 | AB29: =SUM(AB32:AB47) -> 1 | AD29: =MAX(AB32:AB47) -> 0.2741935484 | AF29: =SUM(AF32:AF47) -> 62
B30: 18.8 | C30: 86 | D30: 18.8 | E30: 4 | F30: 5.4 | G30: 290 | H30: 1024.6 | I30: 0 | J30: 0 | K30: 0 | L30: 0 | M30: 5.6 | N30: 206.3 | O30: 17.6 | P30: 18 | Q30: 00:21:00 | AD30: =VLOOKUP(AD29,AB32:AD47,AD31,0) -> 270
B31: 18.8 | C31: 87 | D31: 18.8 | E31: 7.9 | F31: 11.2 | G31: 277 | H31: 1024.6 | I31: 0 | J31: 0 | K31: 0 | L31: 0 | M31: 5.6 | N31: 206.3 | O31: 17.6 | P31: 18 | Q31: 00:22:00 | AD31: 3
B32: 18.8 | C32: 87 | D32: 18.8 | E32: 6.1 | F32: 7.2 | G32: 274 | H32: 1024.5 | I32: 0 | J32: 0 | K32: 0 | L32: 0 | M32: 5.6 | N32: 206.3 | O32: 17.6 | P32: 18 | Q32: 00:23:00 | AB32: =AF32/$AF$29 -> 0.06451612903 | AD32: 0 | AF32: =COUNTIF($G$9:$G$1448,AD32) -> 4
B33: 18.8 | C33: 86 | D33: 18.8 | E33: 3.6 | F33: 3.6 | G33: 276 | H33: 1024.4 | I33: 0 | J33: 0 | K33: 0 | L33: 0 | M33: 5.6 | N33: 206.3 | O33: 17.6 | P33: 18 | Q33: 00:24:00 | AB33: =AF33/$AF$29 -> 0.06451612903 | AD33: 22 | AF33: =COUNTIF($G$9:$G$1448,AD33) -> 4
B34: 18.8 | C34: 87 | D34: 18.8 | E34: 10.1 | F34: 13 | G34: 274 | H34: 1024.5 | I34: 0 | J34: 0 | K34: 0 | L34: 0 | M34: 5.6 | N34: 206.3 | O34: 17.5 | P34: 18 | Q34: 00:25:00 | AB34: =AF34/$AF$29 -> 0.03225806452 | AD34: 45 | AF34: 2
B35: 18.8 | C35: 87 | D35: 18.8 | E35: 10.4 | F35: 13 | G35: 288 | H35: 1024.6 | I35: 0 | J35: 0 | K35: 0 | L35: 0 | M35: 5.6 | N35: 206.3 | O35: 17.5 | P35: 17.9 | Q35: 00:26:00 | AB35: 0.03225806452 | AD35: 67 | AF35: =COUNTIF($G$9:$G$1448,AD35) -> 2
B36: 18.7 | C36: 87 | D36: 18.7 | E36: 3.6 | F36: 5.4 | G36: 305 | H36: 1024.4 | I36: 0 | J36: 0 | K36: 0 | L36: 0 | M36: 5.6 | N36: 206.3 | O36: 17.5 | P36: 17.9 | Q36: 00:27:00 | AB36: 0 | AD36: 90 | AF36: 0
B37: 18.7 | C37: 87 | D37: 18.7 | E37: 6.8 | F37: 7.2 | G37: 309 | H37: 1024.6 | I37: 0 | J37: 0 | K37: 0 | L37: 0 | M37: 5.6 | N37: 206.3 | O37: 17.5 | P37: 18 | Q37: 00:28:00 | AB37: 0 | AD37: 112 | AF37: 0
B38: 18.7 | C38: 87 | D38: 18.7 | E38: 4.3 | F38: 5.4 | G38: 292 | H38: 1024.3 | I38: 0 | J38: 0 | K38: 0 | L38: 0 | M38: 5.6 | N38: 206.3 | O38: 17.5 | P38: 18 | Q38: 00:29:00 | AB38: 0.01612903226 | AD38: 135 | AF38: 1
B39: 18.7 | C39: 87 | D39: 18.7 | E39: 3.2 | F39: 5.4 | G39: 252 | H39: 1024.5 | I39: 0 | J39: 0 | K39: 0 | L39: 0 | M39: 5.6 | N39: 206.3 | O39: 17.5 | P39: 18 | Q39: 00:30:00 | AB39: 0 | AD39: 157 | AF39: 0
B40: 18.7 | C40: 87 | D40: 18.7 | E40: 6.8 | F40: 9.4 | G40: 190 | H40: 1024.6 | I40: 0 | J40: 0 | K40: 0 | L40: 0 | M40: 5.6 | N40: 206.3 | O40: 17.5 | P40: 17.9 | Q40: 00:31:00 | AB40: 0 | AD40: 180 | AF40: 0
B41: 18.7 | C41: 87 | D41: 18.7 | E41: 5.4 | F41: 7.2 | G41: 323 | H41: 1024.5 | I41: 0 | J41: 0 | K41: 0 | L41: 0 | M41: 5.6 | N41: 206.3 | O41: 17.5 | P41: 17.9 | Q41: 00:32:00 | AB41: 0.01612903226 | AD41: 202 | AF41: 1
B42: 18.7 | C42: 87 | D42: 18.7 | E42: 4 | F42: 5.4 | G42: 29 | H42: 1024.6 | I42: 0 | J42: 0 | K42: 0 | L42: 0 | M42: 5.6 | N42: 206.3 | O42: 17.5 | P42: 17.9 | Q42: 00:33:00 | AB42: 0.04838709677 | AD42: 225 | AF42: 3
B43: 18.7 | C43: 87 | D43: 18.7 | E43: 6.1 | F43: 7.2 | G43: 277 | H43: 1024.5 | I43: 0 | J43: 0 | K43: 0 | L43: 0 | M43: 5.6 | N43: 206.3 | O43: 17.5 | P43: 17.9 | Q43: 00:34:00 | AB43: 0.1612903226 | AD43: 247 | AF43: 10
B44: 18.7 | C44: 87 | D44: 18.7 | E44: 9 | F44: 11.2 | G44: 221 | H44: 1024.5 | I44: 0 | J44: 0 | K44: 0 | L44: 0 | M44: 5.6 | N44: 206.3 | O44: 17.5 | P44: 17.9 | Q44: 00:35:00 | AB44: 0.2741935484 | AD44: 270 | AF44: 17
B45: 18.7 | C45: 87 | D45: 18.7 | E45: 2.9 | F45: 7.2 | G45: 315 | H45: 1024.5 | I45: 0 | J45: 0 | K45: 0 | L45: 0 | M45: 5.6 | N45: 206.3 | O45: 17.5 | P45: 17.9 | Q45: 00:36:00 | AB45: 0.2258064516 | AD45: 292 | AF45: 14
B46: 18.7 | C46: 87 | D46: 18.7 | E46: 6.1 | F46: 9.4 | G46: 319 | H46: 1024.6 | I46: 0 | J46: 0 | K46: 0 | L46: 0 | M46: 5.6 | N46: 206.3 | O46: 17.5 | P46: 17.9 | Q46: 00:37:00 | AB46: 0.03225806452 | AD46: 315 | AF46: 2
B47: 18.7 | C47: 87 | D47: 18.7 | E47: 8.3 | F47: 11.2 | G47: 262 | H47: 1024.5 | I47: 0 | J47: 0 | K47: 0 | L47: 0 | M47: 5.6 | N47: 206.3 | O47: 17.5 | P47: 17.9 | Q47: 00:38:00 | AB47: 0.03225806452 | AD47: 337 | AF47: 2
B48: 18.7 | C48: 87 | D48: 18.7 | E48: 6.1 | F48: 9.4 | G48: 291 | H48: 1024.5 | I48: 0 | J48: 0 | K48: 0 | L48: 0 | M48: 5.6 | N48: 206.3 | O48: 17.5 | P48: 17.9 | Q48: 00:39:00
B49: 18.7 | C49: 87 | D49: 18.7 | E49: 9 | F49: 11.2 | G49: 311 | H49: 1024.5 | I49: 0 | J49: 0 | K49: 0 | L49: 0 | M49: 5.6 | N49: 206.3 | O49: 17.4 | P49: 17.9 | Q49: 00:40:00
B50: 18.7 | C50: 87 | D50: 18.7 | E50: 7.6 | F50: 9.4 | G50: 288 | H50: 1024.6 | I50: 0 | J50: 0 | K50: 0 | L50: 0 | M50: 5.6 | N50: 206.3 | O50: 17.4 | P50: 17.9 | Q50: 00:41:00
B51: 18.7 | C51: 87 | D51: 18.7 | E51: 8.6 | F51: 9.4 | G51: 281 | H51: 1024.6 | I51: 0 | J51: 0 | K51: 0 | L51: 0 | M51: 5.6 | N51: 206.3 | O51: 17.4 | P51: 17.9 | Q51: 00:42:00
B52: 18.7 | C52: 87 | D52: 18.7 | E52: 5.8 | F52: 7.2 | G52: 309 | H52: 1024.5 | I52: 0 | J52: 0 | K52: 0 | L52: 0 | M52: 5.6 | N52: 206.3 | O52: 17.4 | P52: 17.9 | Q52: 00:43:00
B53: 18.6 | C53: 87 | D53: 18.6 | E53: 7.2 | F53: 9.4 | G53: 13 | H53: 1024.5 | I53: 0 | J53: 0 | K53: 0 | L53: 0 | M53: 5.6 | N53: 206.3 | O53: 17.4 | P53: 17.9 | Q53: 00:44:00
B54: 18.6 | C54: 87 | D54: 18.6 | E54: 4 | F54: 5.4 | G54: 298 | H54: 1024.5 | I54: 0 | J54: 0 | K54: 0 | L54: 0 | M54: 5.6 | N54: 206.3 | O54: 17.4 | P54: 17.9 | Q54: 00:45:00
B55: 18.6 | C55: 87 | D55: 18.6 | E55: 4.3 | F55: 5.4 | G55: 298 | H55: 1024.5 | I55: 0 | J55: 0 | K55: 0 | L55: 0 | M55: 5.6 | N55: 206.3 | O55: 17.4 | P55: 17.9 | Q55: 00:46:00
B56: 18.6 | C56: 87 | D56: 18.6 | E56: 7.2 | F56: 9.4 | G56: 253 | H56: 1024.7 | I56: 0 | J56: 0 | K56: 0 | L56: 0 | M56: 5.6 | N56: 206.3 | O56: 17.4 | P56: 17.9 | Q56: 00:47:00
B57: 18.6 | C57: 87 | D57: 18.6 | E57: 2.9 | F57: 3.6 | G57: 255 | H57: 1024.5 | I57: 0 | J57: 0 | K57: 0 | L57: 0 | M57: 5.6 | N57: 206.3 | O57: 17.4 | P57: 17.9 | Q57: 00:48:00
B58: 18.6 | C58: 87 | D58: 18.6 | E58: 4.7 | F58: 5.4 | G58: 274 | H58: 1024.8 | I58: 0 | J58: 0 | K58: 0 | L58: 0 | M58: 5.6 | N58: 206.3 | O58: 17.4 | P58: 17.8 | Q58: 00:49:00
B59: 18.6 | C59: 87 | D59: 18.6 | E59: 6.5 | F59: 9.4 | G59: 313 | H59: 1024.5 | I59: 0 | J59: 0 | K59: 0 | L59: 0 | M59: 5.6 | N59: 206.3 | O59: 17.3 | P59: 17.8 | Q59: 00:50:00
B60: 18.6 | C60: 87 | D60: 18.6 | E60: 7.2 | F60: 11.2 | G60: 266 | H60: 1024.6 | I60: 0 | J60: 0 | K60: 0 | L60: 0 | M60: 5.6 | N60: 206.3 | O60: 17.4 | P60: 17.8 | Q60: 00:51:00
B61: 18.6 | C61: 87 | D61: 18.6 | E61: 3.2 | F61: 3.6 | G61: 301 | H61: 1024.7 | I61: 0 | J61: 0 | K61: 0 | L61: 0 | M61: 5.6 | N61: 206.3 | O61: 17.3 | P61: 17.8 | Q61: 00:52:00
B62: 18.6 | C62: 87 | D62: 18.6 | E62: 4.7 | F62: 5.4 | G62: 344 | H62: 1024.5 | I62: 0 | J62: 0 | K62: 0 | L62: 0 | M62: 5.6 | N62: 206.3 | O62: 17.3 | P62: 17.8 | Q62: 00:53:00
B63: 18.6 | C63: 87 | D63: 18.6 | E63: 4 | F63: 5.4 | G63: 352 | H63: 1024.7 | I63: 0 | J63: 0 | K63: 0 | L63: 0 | M63: 5.6 | N63: 206.3 | O63: 17.3 | P63: 17.8 | Q63: 00:54:00
B64: 18.6 | C64: 87 | D64: 18.6 | E64: 3.2 | F64: 3.6 | G64: 265 | H64: 1024.6 | I64: 0 | J64: 0 | K64: 0 | L64: 0 | M64: 5.6 | N64: 206.3 | O64: 17.3 | P64: 17.8 | Q64: 00:55:00
B65: 18.6 | C65: 87 | D65: 18.6 | E65: 3.6 | F65: 3.6 | G65: 239 | H65: 1024.7 | I65: 0 | J65: 0 | K65: 0 | L65: 0 | M65: 5.6 | N65: 206.3 | O65: 17.3 | P65: 17.8 | Q65: 00:56:00
B66: 18.6 | C66: 87 | D66: 18.6 | E66: 3.2 | F66: 3.6 | G66: 291 | H66: 1024.7 | I66: 0 | J66: 0 | K66: 0 | L66: 0 | M66: 5.6 | N66: 206.3 | O66: 17.3 | P66: 17.7 | Q66: 00:57:00
B67: 18.6 | C67: 88 | D67: 18.6 | E67: 4 | F67: 5.4 | G67: 271 | H67: 1024.6 | I67: 0 | J67: 0 | K67: 0 | L67: 0 | M67: 5.6 | N67: 206.3 | O67: 17.3 | P67: 17.7 | Q67: 00:58:00
B68: 18.6 | C68: 88 | D68: 18.6 | E68: 3.6 | F68: 3.6 | G68: 272 | H68: 1024.7 | I68: 0 | J68: 0 | K68: 0 | L68: 0 | M68: 5.6 | N68: 206.3 | O68: 17.3 | P68: 17.7 | Q68: 00:59:00
B69: 18.6 | C69: 88 | D69: 18.6 | E69: 2.2 | F69: 3.6 | G69: 274 | H69: 1024.6 | I69: 0 | J69: 0 | K69: 0 | L69: 0 | M69: 5.6 | N69: 206.3 | O69: 17.3 | P69: 17.7 | Q69: 01:00:00
B70: 18.6 | C70: 88 | D70: 18.6 | E70: 4.3 | F70: 5.4 | G70: 269 | H70: 1024.7 | I70: 0 | J70: 0 | K70: 0 | L70: 0 | M70: 5.6 | N70: 206.3 | O70: 17.3 | P70: 17.7 | Q70: 01:01:00
B71: 18.6 | C71: 88 | D71: 18.6 | E71: 4 | F71: 5.4 | G71: 339 | H71: 1024.7 | I71: 0 | J71: 0 | K71: 0 | L71: 0 | M71: 5.6 | N71: 206.3 | O71: 17.2 | P71: 17.7 | Q71: 01:02:00
B72: 18.6 | C72: 88 | D72: 18.6 | E72: 3.2 | F72: 3.6 | G72: 278 | H72: 1024.6 | I72: 0 | J72: 0 | K72: 0 | L72: 0 | M72: 5.6 | N72: 206.3 | O72: 17.3 | P72: 17.7 | Q72: 01:03:00
B73: 18.6 | C73: 88 | D73: 18.6 | E73: 5 | F73: 7.2 | G73: 270 | H73: 1024.6 | I73: 0 | J73: 0 | K73: 0 | L73: 0 | M73: 5.6 | N73: 206.3 | O73: 17.3 | P73: 17.6 | Q73: 01:04:00
B74: 18.6 | C74: 88 | D74: 18.6 | E74: 6.1 | F74: 7.2 | G74: 292 | H74: 1024.7 | I74: 0 | J74: 0 | K74: 0 | L74: 0 | M74: 5.6 | N74: 206.3 | O74: 17.3 | P74: 17.6 | Q74: 01:05:00
B75: 18.6 | C75: 88 | D75: 18.6 | E75: 5.4 | F75: 5.4 | G75: 351 | H75: 1024.7 | I75: 0 | J75: 0 | K75: 0 | L75: 0 | M75: 5.6 | N75: 206.3 | O75: 17.3 | P75: 17.6 | Q75: 01:06:00
B76: 18.6 | C76: 88 | D76: 18.6 | E76: 2.9 | F76: 3.6 | G76: 316 | H76: 1024.8 | I76: 0 | J76: 0 | K76: 0 | L76: 0 | M76: 5.6 | N76: 206.3 | O76: 17.3 | P76: 17.6 | Q76: 01:07:00 | U76: =IF(J76>0,60,"") -> 
B77: 18.6 | C77: 88 | D77: 18.6 | E77: 5.4 | F77: 5.4 | G77: 269 | H77: 1024.8 | I77: 0 | J77: 0 | K77: 0 | L77: 0 | M77: 5.6 | N77: 206.3 | O77: 17.2 | P77: 17.6 | Q77: 01:08:00
B78: 18.6 | C78: 88 | D78: 18.6 | E78: 2.9 | F78: 3.6 | G78: 5 | H78: 1024.8 | I78: 0 | J78: 0 | K78: 0 | L78: 0 | M78: 5.6 | N78: 206.3 | O78: 17.2 | P78: 17.6 | Q78: 01:09:00
B79: 18.6 | C79: 88 | D79: 18.6 | E79: 4 | F79: 5.4 | G79: 287 | H79: 1024.7 | I79: 0 | J79: 0 | K79: 0 | L79: 0 | M79: 5.6 | N79: 206.3 | O79: 17.3 | P79: 17.6 | Q79: 01:10:00
B80: 18.6 | C80: 88 | D80: 18.6 | E80: 5 | F80: 7.2 | G80: 264 | H80: 1024.8 | I80: 0 | J80: 0 | K80: 0 | L80: 0 | M80: 5.6 | N80: 206.3 | O80: 17.3 | P80: 17.6 | Q80: 01:11:00
B81: 18.6 | C81: 88 | D81: 18.6 | E81: 4.7 | F81: 7.2 | G81: 327 | H81: 1024.8 | I81: 0 | J81: 0 | K81: 0 | L81: 0 | M81: 5.6 | N81: 206.3 | O81: 17.2 | P81: 17.6 | Q81: 01:12:00
B82: 18.6 | C82: 88 | D82: 18.6 | E82: 3.6 | F82: 3.6 | G82: 57 | H82: 1024.7 | I82: 0 | J82: 0 | K82: 0 | L82: 0 | M82: 5.6 | N82: 206.3 | O82: 17.2 | P82: 17.6 | Q82: 01:13:00
B83: 18.6 | C83: 88 | D83: 18.6 | E83: 2.9 | F83: 3.6 | G83: 9 | H83: 1024.8 | I83: 0 | J83: 0 | K83: 0 | L83: 0 | M83: 5.6 | N83: 206.3 | O83: 17.2 | P83: 17.6 | Q83: 01:14:00
B84: 18.6 | C84: 88 | D84: 18.6 | E84: 4.7 | F84: 5.4 | G84: 267 | H84: 1024.9 | I84: 0 | J84: 0 | K84: 0 | L84: 0 | M84: 5.6 | N84: 206.3 | O84: 17.3 | P84: 17.6 | Q84: 01:15:00
B85: 18.6 | C85: 88 | D85: 18.6 | E85: 2.9 | F85: 3.6 | G85: 354 | H85: 1024.8 | I85: 0 | J85: 0 | K85: 0 | L85: 0 | M85: 5.6 | N85: 206.3 | O85: 17.2 | P85: 17.6 | Q85: 01:16:00
B86: 18.6 | C86: 88 | D86: 18.6 | E86: 2.9 | F86: 3.6 | G86: 345 | H86: 1024.9 | I86: 0 | J86: 0 | K86: 0 | L86: 0 | M86: 5.6 | N86: 206.3 | O86: 17.2 | P86: 17.6 | Q86: 01:17:00
B87: 18.6 | C87: 88 | D87: 18.6 | E87: 1.8 | F87: 3.6 | G87: 294 | H87: 1024.7 | I87: 0 | J87: 0 | K87: 0 | L87: 0 | M87: 5.6 | N87: 206.3 | O87: 17.2 | P87: 17.6 | Q87: 01:18:00
B88: 18.6 | C88: 88 | D88: 18.6 | E88: 2.2 | F88: 3.6 | G88: 311 | H88: 1024.7 | I88: 0 | J88: 0 | K88: 0 | L88: 0 | M88: 5.6 | N88: 206.3 | O88: 17.2 | P88: 17.6 | Q88: 01:19:00
B89: 18.6 | C89: 88 | D89: 18.6 | E89: 6.5 | F89: 9.4 | G89: 313 | H89: 1025.1 | I89: 0 | J89: 0 | K89: 0 | L89: 0 | M89: 5.6 | N89: 206.3 | O89: 17.2 | P89: 17.6 | Q89: 01:20:00
B90: 18.6 | C90: 88 | D90: 18.6 | E90: 4 | F90: 5.4 | G90: 327 | H90: 1024.9 | I90: 0 | J90: 0 | K90: 0 | L90: 0 | M90: 5.6 | N90: 206.3 | O90: 17.2 | P90: 17.5 | Q90: 01:21:00
B91: 18.6 | C91: 88 | D91: 18.6 | E91: 1.1 | F91: 1.8 | G91: 273 | H91: 1024.8 | I91: 0 | J91: 0 | K91: 0 | L91: 0 | M91: 5.6 | N91: 206.3 | O91: 17.2 | P91: 17.5 | Q91: 01:22:00
B92: 18.6 | C92: 88 | D92: 18.6 | E92: 0.4 | F92: 1.8 | G92: 275 | H92: 1024.7 | I92: 0 | J92: 0 | K92: 0 | L92: 0 | M92: 5.6 | N92: 206.3 | O92: 17.2 | P92: 17.6 | Q92: 01:23:00
B93: 18.5 | C93: 88 | D93: 18.5 | E93: 3.6 | F93: 3.6 | G93: 317 | H93: 1024.8 | I93: 0 | J93: 0 | K93: 0 | L93: 0 | M93: 5.6 | N93: 206.3 | O93: 17.2 | P93: 17.6 | Q93: 01:24:00
B94: 18.5 | C94: 89 | D94: 18.5 | E94: 4.7 | F94: 5.4 | G94: 70 | H94: 1025 | I94: 0 | J94: 0 | K94: 0 | L94: 0 | M94: 5.6 | N94: 206.3 | O94: 17.2 | P94: 17.5 | Q94: 01:25:00
B95: 18.5 | C95: 89 | D95: 18.5 | E95: 1.1 | F95: 1.8 | G95: 50 | H95: 1025.1 | I95: 0 | J95: 0 | K95: 0 | L95: 0 | M95: 5.6 | N95: 206.3 | O95: 17.2 | P95: 17.5 | Q95: 01:26:00
B96: 18.5 | C96: 89 | D96: 18.5 | E96: 2.5 | F96: 3.6 | G96: 22 | H96: 1025 | I96: 0 | J96: 0 | K96: 0 | L96: 0 | M96: 5.6 | N96: 206.3 | O96: 17.1 | P96: 17.5 | Q96: 01:27:00
B97: 18.5 | C97: 89 | D97: 18.5 | E97: 4.7 | F97: 5.4 | G97: 289 | H97: 1024.7 | I97: 0 | J97: 0 | K97: 0 | L97: 0 | M97: 5.6 | N97: 206.3 | O97: 17.1 | P97: 17.5 | Q97: 01:28:00
B98: 18.5 | C98: 89 | D98: 18.5 | E98: 6.1 | F98: 9.4 | G98: 261 | H98: 1025 | I98: 0 | J98: 0 | K98: 0 | L98: 0 | M98: 5.6 | N98: 206.3 | O98: 17.2 | P98: 17.5 | Q98: 01:29:00
B99: 18.5 | C99: 89 | D99: 18.5 | E99: 5 | F99: 7.2 | G99: 263 | H99: 1024.9 | I99: 0 | J99: 0 | K99: 0 | L99: 0 | M99: 5.6 | N99: 206.3 | O99: 17.1 | P99: 17.5 | Q99: 01:30:00
B100: 18.5 | C100: 89 | D100: 18.5 | E100: 3.6 | F100: 3.6 | G100: 325 | H100: 1024.9 | I100: 0 | J100: 0 | K100: 0 | L100: 0 | M100: 5.6 | N100: 206.3 | O100: 17.1 | P100: 17.5 | Q100: 01:31:00
B101: 18.5 | C101: 89 | D101: 18.5 | E101: 3.2 | F101: 3.6 | G101: 303 | H101: 1024.9 | I101: 0 | J101: 0 | K101: 0 | L101: 0 | M101: 5.6 | N101: 206.3 | O101: 17.1 | P101: 17.5 | Q101: 01:32:00
B102: 18.5 | C102: 89 | D102: 18.5 | E102: 2.9 | F102: 3.6 | G102: 262 | H102: 1025 | I102: 0 | J102: 0 | K102: 0 | L102: 0 | M102: 5.6 | N102: 206.3 | O102: 17.1 | P102: 17.5 | Q102: 01:33:00
B103: 18.5 | C103: 89 | D103: 18.5 | E103: 3.2 | F103: 5.4 | G103: 38 | H103: 1024.7 | I103: 0 | J103: 0 | K103: 0 | L103: 0 | M103: 5.6 | N103: 206.3 | O103: 17.1 | P103: 17.5 | Q103: 01:34:00
B104: 18.5 | C104: 89 | D104: 18.5 | E104: 2.2 | F104: 3.6 | G104: 69 | H104: 1024.9 | I104: 0 | J104: 0 | K104: 0 | L104: 0 | M104: 5.6 | N104: 206.3 | O104: 17.1 | P104: 17.5 | Q104: 01:35:00
B105: 18.5 | C105: 89 | D105: 18.5 | E105: 3.6 | F105: 3.6 | G105: 275 | H105: 1024.9 | I105: 0 | J105: 0 | K105: 0 | L105: 0 | M105: 5.6 | N105: 206.3 | O105: 17.1 | P105: 17.4 | Q105: 01:36:00
B106: 18.5 | C106: 89 | D106: 18.5 | E106: 3.2 | F106: 3.6 | G106: 322 | H106: 1024.8 | I106: 0 | J106: 0 | K106: 0 | L106: 0 | M106: 5.6 | N106: 206.3 | O106: 17.1 | P106: 17.5 | Q106: 01:37:00
B107: 18.5 | C107: 89 | D107: 18.5 | E107: 4 | F107: 7.2 | G107: 278 | H107: 1025 | I107: 0 | J107: 0 | K107: 0 | L107: 0 | M107: 5.6 | N107: 206.3 | O107: 17.1 | P107: 17.4 | Q107: 01:38:00
B108: 18.5 | C108: 89 | D108: 18.5 | E108: 3.6 | F108: 5.4 | G108: 280 | H108: 1024.7 | I108: 0 | J108: 0 | K108: 0 | L108: 0 | M108: 5.6 | N108: 206.3 | O108: 17.1 | P108: 17.5 | Q108: 01:39:00
B109: 18.5 | C109: 89 | D109: 18.5 | E109: 4 | F109: 5.4 | G109: 264 | H109: 1025 | I109: 0 | J109: 0 | K109: 0 | L109: 0 | M109: 5.6 | N109: 206.3 | O109: 17.1 | P109: 17.4 | Q109: 01:40:00
B110: 18.5 | C110: 89 | D110: 18.5 | E110: 2.5 | F110: 3.6 | G110: 284 | H110: 1024.9 | I110: 0 | J110: 0 | K110: 0 | L110: 0 | M110: 5.6 | N110: 206.3 | O110: 17.2 | P110: 17.5 | Q110: 01:41:00
B111: 18.5 | C111: 89 | D111: 18.5 | E111: 2.9 | F111: 3.6 | G111: 302 | H111: 1024.8 | I111: 0 | J111: 0 | K111: 0 | L111: 0 | M111: 5.6 | N111: 206.3 | O111: 17.1 | P111: 17.4 | Q111: 01:42:00
B112: 18.5 | C112: 89 | D112: 18.5 | E112: 1.1 | F112: 1.8 | G112: 4 | H112: 1024.8 | I112: 0 | J112: 0 | K112: 0 | L112: 0 | M112: 5.6 | N112: 206.3 | O112: 17.1 | P112: 17.4 | Q112: 01:43:00
B113: 18.5 | C113: 89 | D113: 18.5 | E113: 2.9 | F113: 3.6 | G113: 290 | H113: 1024.8 | I113: 0 | J113: 0 | K113: 0 | L113: 0 | M113: 5.6 | N113: 206.3 | O113: 17.1 | P113: 17.4 | Q113: 01:44:00
B114: 18.5 | C114: 89 | D114: 18.5 | E114: 4.7 | F114: 5.4 | G114: 260 | H114: 1024.9 | I114: 0 | J114: 0 | K114: 0 | L114: 0 | M114: 5.6 | N114: 206.3 | O114: 17.1 | P114: 17.4 | Q114: 01:45:00
B115: 18.5 | C115: 89 | D115: 18.5 | E115: 2.5 | F115: 3.6 | G115: 328 | H115: 1024.8 | I115: 0 | J115: 0 | K115: 0 | L115: 0 | M115: 5.6 | N115: 206.3 | O115: 17.1 | P115: 17.4 | Q115: 01:46:00
B116: 18.5 | C116: 89 | D116: 18.5 | E116: 1.4 | F116: 1.8 | G116: 65 | H116: 1024.9 | I116: 0 | J116: 0 | K116: 0 | L116: 0 | M116: 5.6 | N116: 206.3 | O116: 17.1 | P116: 17.4 | Q116: 01:47:00
B117: 18.5 | C117: 89 | D117: 18.5 | E117: 3.6 | F117: 3.6 | G117: 274 | H117: 1024.9 | I117: 0 | J117: 0 | K117: 0 | L117: 0 | M117: 5.6 | N117: 206.3 | O117: 17.1 | P117: 17.4 | Q117: 01:48:00
B118: 18.5 | C118: 89 | D118: 18.5 | E118: 1.8 | F118: 1.8 | G118: 30 | H118: 1025.1 | I118: 0 | J118: 0 | K118: 0 | L118: 0 | M118: 5.6 | N118: 206.3 | O118: 17.1 | P118: 17.4 | Q118: 01:49:00
B119: 18.5 | C119: 89 | D119: 18.5 | E119: 2.9 | F119: 3.6 | G119: 280 | H119: 1025 | I119: 0 | J119: 0 | K119: 0 | L119: 0 | M119: 5.6 | N119: 206.3 | O119: 17.1 | P119: 17.4 | Q119: 01:50:00
B120: 18.5 | C120: 89 | D120: 18.5 | E120: 5.4 | F120: 7.2 | G120: 289 | H120: 1025 | I120: 0 | J120: 0 | K120: 0 | L120: 0 | M120: 5.6 | N120: 206.3 | O120: 17.1 | P120: 17.4 | Q120: 01:51:00
B121: 18.4 | C121: 89 | D121: 18.4 | E121: 2.9 | F121: 3.6 | G121: 30 | H121: 1024.9 | I121: 0 | J121: 0 | K121: 0 | L121: 0 | M121: 5.6 | N121: 206.3 | O121: 17.1 | P121: 17.3 | Q121: 01:52:00
B122: 18.4 | C122: 89 | D122: 18.4 | E122: 1.4 | F122: 1.8 | G122: 58 | H122: 1024.7 | I122: 0 | J122: 0 | K122: 0 | L122: 0 | M122: 5.6 | N122: 206.3 | O122: 17.1 | P122: 17.3 | Q122: 01:53:00
B123: 18.4 | C123: 89 | D123: 18.4 | E123: 1.8 | F123: 3.6 | G123: 44 | H123: 1024.9 | I123: 0 | J123: 0 | K123: 0 | L123: 0 | M123: 5.6 | N123: 206.3 | O123: 17.1 | P123: 17.3 | Q123: 01:54:00
B124: 18.4 | C124: 90 | D124: 18.4 | E124: 5 | F124: 5.4 | G124: 284 | H124: 1024.9 | I124: 0 | J124: 0 | K124: 0 | L124: 0 | M124: 5.6 | N124: 206.3 | O124: 17.1 | P124: 17.3 | Q124: 01:55:00
B125: 18.4 | C125: 89 | D125: 18.4 | E125: 1.1 | F125: 1.8 | G125: 66 | H125: 1024.9 | I125: 0 | J125: 0 | K125: 0 | L125: 0 | M125: 5.6 | N125: 206.3 | O125: 17.1 | P125: 17.3 | Q125: 01:56:00
B126: 18.4 | C126: 90 | D126: 18.4 | E126: 4.7 | F126: 5.4 | G126: 334 | H126: 1024.9 | I126: 0 | J126: 0 | K126: 0 | L126: 0 | M126: 5.6 | N126: 206.3 | O126: 17 | P126: 17.3 | Q126: 01:57:00
B127: 18.4 | C127: 90 | D127: 18.4 | E127: 1.4 | F127: 1.8 | G127: 355 | H127: 1025 | I127: 0 | J127: 0 | K127: 0 | L127: 0 | M127: 5.6 | N127: 206.3 | O127: 17 | P127: 17.3 | Q127: 01:58:00
B128: 18.4 | C128: 90 | D128: 18.4 | E128: 2.9 | F128: 3.6 | G128: 312 | H128: 1024.8 | I128: 0 | J128: 0 | K128: 0 | L128: 0 | M128: 5.6 | N128: 206.3 | O128: 17 | P128: 17.3 | Q128: 01:59:00
B129: 18.4 | C129: 90 | D129: 18.4 | E129: 1.8 | F129: 1.8 | G129: 18 | H129: 1024.8 | I129: 0 | J129: 0 | K129: 0 | L129: 0 | M129: 5.6 | N129: 206.3 | O129: 17 | P129: 17.3 | Q129: 02:00:00
B130: 18.4 | C130: 90 | D130: 18.4 | E130: 2.9 | F130: 3.6 | G130: 273 | H130: 1024.9 | I130: 0 | J130: 0 | K130: 0 | L130: 0 | M130: 5.6 | N130: 206.3 | O130: 17 | P130: 17.3 | Q130: 02:01:00
B131: 18.4 | C131: 90 | D131: 18.4 | E131: 1.8 | F131: 1.8 | G131: 39 | H131: 1024.8 | I131: 0 | J131: 0 | K131: 0 | L131: 0 | M131: 5.6 | N131: 206.3 | O131: 17 | P131: 17.3 | Q131: 02:02:00
B132: 18.4 | C132: 90 | D132: 18.4 | E132: 2.9 | F132: 3.6 | G132: 310 | H132: 1024.9 | I132: 0 | J132: 0 | K132: 0 | L132: 0 | M132: 5.6 | N132: 206.3 | O132: 17 | P132: 17.3 | Q132: 02:03:00
B133: 18.4 | C133: 90 | D133: 18.4 | E133: 2.9 | F133: 3.6 | G133: 264 | H133: 1025.1 | I133: 0 | J133: 0 | K133: 0 | L133: 0 | M133: 5.6 | N133: 206.3 | O133: 17 | P133: 17.2 | Q133: 02:04:00
B134: 18.3 | C134: 90 | D134: 18.3 | E134: 1.8 | F134: 1.8 | G134: 8 | H134: 1024.9 | I134: 0 | J134: 0 | K134: 0 | L134: 0 | M134: 5.6 | N134: 206.3 | O134: 17 | P134: 17.2 | Q134: 02:05:00
B135: 18.3 | C135: 90 | D135: 18.3 | E135: 4 | F135: 5.4 | G135: 259 | H135: 1024.8 | I135: 0 | J135: 0 | K135: 0 | L135: 0 | M135: 5.6 | N135: 206.3 | O135: 17 | P135: 17.2 | Q135: 02:06:00
B136: 18.3 | C136: 90 | D136: 18.3 | E136: 2.9 | F136: 5.4 | G136: 256 | H136: 1024.9 | I136: 0 | J136: 0 | K136: 0 | L136: 0 | M136: 5.6 | N136: 206.3 | O136: 17 | P136: 17.2 | Q136: 02:07:00
B137: 18.3 | C137: 90 | D137: 18.3 | E137: 4 | F137: 5.4 | G137: 264 | H137: 1024.8 | I137: 0 | J137: 0 | K137: 0 | L137: 0 | M137: 5.6 | N137: 206.3 | O137: 17 | P137: 17.2 | Q137: 02:08:00
B138: 18.4 | C138: 90 | D138: 18.4 | E138: 2.2 | F138: 3.6 | G138: 7 | H138: 1025 | I138: 0 | J138: 0 | K138: 0 | L138: 0 | M138: 5.6 | N138: 206.3 | O138: 17 | P138: 17.2 | Q138: 02:09:00
B139: 18.3 | C139: 90 | D139: 18.3 | E139: 2.9 | F139: 3.6 | G139: 333 | H139: 1025 | I139: 0 | J139: 0 | K139: 0 | L139: 0 | M139: 5.6 | N139: 206.3 | O139: 17 | P139: 17.2 | Q139: 02:10:00
B140: 18.3 | C140: 90 | D140: 18.3 | E140: 2.9 | F140: 3.6 | G140: 282 | H140: 1025 | I140: 0 | J140: 0 | K140: 0 | L140: 0 | M140: 5.6 | N140: 206.3 | O140: 17 | P140: 17.2 | Q140: 02:11:00 | U140: =IF(J140>0,60,"") -> 
B141: 18.3 | C141: 90 | D141: 18.3 | E141: 2.2 | F141: 3.6 | G141: 327 | H141: 1024.8 | I141: 0 | J141: 0 | K141: 0 | L141: 0 | M141: 5.6 | N141: 206.3 | O141: 17 | P141: 17.2 | Q141: 02:12:00
B142: 18.3 | C142: 90 | D142: 18.3 | E142: 2.5 | F142: 3.6 | G142: 333 | H142: 1025 | I142: 0 | J142: 0 | K142: 0 | L142: 0 | M142: 5.6 | N142: 206.3 | O142: 17 | P142: 17.2 | Q142: 02:13:00
B143: 18.3 | C143: 90 | D143: 18.3 | E143: 3.6 | F143: 3.6 | G143: 292 | H143: 1024.9 | I143: 0 | J143: 0 | K143: 0 | L143: 0 | M143: 5.6 | N143: 206.3 | O143: 16.9 | P143: 17.2 | Q143: 02:14:00
B144: 18.4 | C144: 90 | D144: 18.4 | E144: 2.2 | F144: 3.6 | G144: 339 | H144: 1025 | I144: 0 | J144: 0 | K144: 0 | L144: 0 | M144: 5.6 | N144: 206.3 | O144: 17 | P144: 17.2 | Q144: 02:15:00
B145: 18.4 | C145: 90 | D145: 18.4 | E145: 1.8 | F145: 1.8 | G145: 341 | H145: 1024.7 | I145: 0 | J145: 0 | K145: 0 | L145: 0 | M145: 5.6 | N145: 206.3 | O145: 17 | P145: 17.2 | Q145: 02:16:00
B146: 18.3 | C146: 90 | D146: 18.3 | E146: 1.1 | F146: 1.8 | G146: 345 | H146: 1024.7 | I146: 0 | J146: 0 | K146: 0 | L146: 0 | M146: 5.6 | N146: 206.3 | O146: 17 | P146: 17.2 | Q146: 02:17:00
B147: 18.3 | C147: 90 | D147: 18.3 | E147: 1.8 | F147: 3.6 | G147: 11 | H147: 1025 | I147: 0 | J147: 0 | K147: 0 | L147: 0 | M147: 5.6 | N147: 206.3 | O147: 17 | P147: 17.2 | Q147: 02:18:00
B148: 18.3 | C148: 90 | D148: 18.3 | E148: 2.9 | F148: 3.6 | G148: 15 | H148: 1025 | I148: 0 | J148: 0 | K148: 0 | L148: 0 | M148: 5.6 | N148: 206.3 | O148: 16.9 | P148: 17.2 | Q148: 02:19:00
B149: 18.3 | C149: 90 | D149: 18.3 | E149: 5 | F149: 5.4 | G149: 278 | H149: 1024.7 | I149: 0 | J149: 0 | K149: 0 | L149: 0 | M149: 5.6 | N149: 206.3 | O149: 16.9 | P149: 17.2 | Q149: 02:20:00
B150: 18.3 | C150: 90 | D150: 18.3 | E150: 1.4 | F150: 1.8 | G150: 61 | H150: 1024.9 | I150: 0 | J150: 0 | K150: 0 | L150: 0 | M150: 5.6 | N150: 206.3 | O150: 17 | P150: 17.2 | Q150: 02:21:00
B151: 18.3 | C151: 90 | D151: 18.3 | E151: 0.4 | F151: 1.8 | G151: 58 | H151: 1025 | I151: 0 | J151: 0 | K151: 0 | L151: 0 | M151: 5.6 | N151: 206.3 | O151: 16.9 | P151: 17.2 | Q151: 02:22:00
B152: 18.3 | C152: 90 | D152: 18.3 | E152: 0.7 | F152: 1.8 | G152: 16 | H152: 1025 | I152: 0 | J152: 0 | K152: 0 | L152: 0 | M152: 5.6 | N152: 206.3 | O152: 17 | P152: 17.2 | Q152: 02:23:00
B153: 18.3 | C153: 90 | D153: 18.3 | E153: 1.4 | F153: 1.8 | G153: 54 | H153: 1024.8 | I153: 0 | J153: 0 | K153: 0 | L153: 0 | M153: 5.6 | N153: 206.3 | O153: 16.9 | P153: 17.2 | Q153: 02:24:00
B154: 18.3 | C154: 90 | D154: 18.3 | E154: 1.1 | F154: 1.8 | G154: 42 | H154: 1025.1 | I154: 0 | J154: 0 | K154: 0 | L154: 0 | M154: 5.6 | N154: 206.3 | O154: 17 | P154: 17.2 | Q154: 02:25:00
B155: 18.3 | C155: 90 | D155: 18.3 | E155: 1.1 | F155: 1.8 | G155: 29 | H155: 1024.9 | I155: 0 | J155: 0 | K155: 0 | L155: 0 | M155: 5.6 | N155: 206.3 | O155: 17 | P155: 17.1 | Q155: 02:26:00
B156: 18.3 | C156: 90 | D156: 18.3 | E156: 0.4 | F156: 1.8 | G156: 43 | H156: 1024.9 | I156: 0 | J156: 0 | K156: 0 | L156: 0 | M156: 5.6 | N156: 206.3 | O156: 16.9 | P156: 17.1 | Q156: 02:27:00
B157: 18.3 | C157: 90 | D157: 18.3 | E157: 1.1 | F157: 1.8 | G157: 39 | H157: 1025 | I157: 0 | J157: 0 | K157: 0 | L157: 0 | M157: 5.6 | N157: 206.3 | O157: 16.9 | P157: 17.1 | Q157: 02:28:00
B158: 18.3 | C158: 90 | D158: 18.3 | E158: 0 | F158: 0 | G158: 44 | H158: 1024.8 | I158: 0 | J158: 0 | K158: 0 | L158: 0 | M158: 5.6 | N158: 206.3 | O158: 17 | P158: 17.1 | Q158: 02:29:00
B159: 18.2 | C159: 90 | D159: 18.2 | E159: 0 | F159: 0 | G159: 50 | H159: 1025 | I159: 0 | J159: 0 | K159: 0 | L159: 0 | M159: 5.6 | N159: 206.3 | O159: 16.9 | P159: 17.1 | Q159: 02:30:00
B160: 18.2 | C160: 90 | D160: 18.2 | E160: 0.7 | F160: 1.8 | G160: 44 | H160: 1024.9 | I160: 0 | J160: 0 | K160: 0 | L160: 0 | M160: 5.6 | N160: 206.3 | O160: 16.9 | P160: 17 | Q160: 02:31:00
B161: 18.2 | C161: 90 | D161: 18.2 | E161: 0.4 | F161: 1.8 | G161: 50 | H161: 1024.7 | I161: 0 | J161: 0 | K161: 0 | L161: 0 | M161: 5.6 | N161: 206.3 | O161: 16.9 | P161: 17 | Q161: 02:32:00
B162: 18.2 | C162: 90 | D162: 18.2 | E162: 0.4 | F162: 1.8 | G162: 50 | H162: 1025 | I162: 0 | J162: 0 | K162: 0 | L162: 0 | M162: 5.6 | N162: 206.3 | O162: 16.9 | P162: 17 | Q162: 02:33:00
B163: 18.2 | C163: 90 | D163: 18.2 | E163: 1.4 | F163: 1.8 | G163: 50 | H163: 1024.6 | I163: 0 | J163: 0 | K163: 0 | L163: 0 | M163: 5.6 | N163: 206.3 | O163: 16.9 | P163: 17 | Q163: 02:34:00
B164: 18.2 | C164: 90 | D164: 18.2 | E164: 1.8 | F164: 1.8 | G164: 45 | H164: 1024.9 | I164: 0 | J164: 0 | K164: 0 | L164: 0 | M164: 5.6 | N164: 206.3 | O164: 16.9 | P164: 16.9 | Q164: 02:35:00
B165: 18.1 | C165: 90 | D165: 18.1 | E165: 1.8 | F165: 1.8 | G165: 50 | H165: 1024.9 | I165: 0 | J165: 0 | K165: 0 | L165: 0 | M165: 5.6 | N165: 206.3 | O165: 16.9 | P165: 16.9 | Q165: 02:36:00
B166: 18.1 | C166: 90 | D166: 18.1 | E166: 0.4 | F166: 1.8 | G166: 50 | H166: 1024.8 | I166: 0 | J166: 0 | K166: 0 | L166: 0 | M166: 5.6 | N166: 206.3 | O166: 16.8 | P166: 16.9 | Q166: 02:37:00
B167: 18.1 | C167: 90 | D167: 18.1 | E167: 2.2 | F167: 3.6 | G167: 49 | H167: 1024.8 | I167: 0 | J167: 0 | K167: 0 | L167: 0 | M167: 5.6 | N167: 206.3 | O167: 16.8 | P167: 16.9 | Q167: 02:38:00
B168: 18.1 | C168: 90 | D168: 18.1 | E168: 1.4 | F168: 1.8 | G168: 52 | H168: 1024.9 | I168: 0 | J168: 0 | K168: 0 | L168: 0 | M168: 5.6 | N168: 206.3 | O168: 16.8 | P168: 16.9 | Q168: 02:39:00
B169: 18 | C169: 90 | D169: 18 | E169: 1.1 | F169: 1.8 | G169: 53 | H169: 1025 | I169: 0 | J169: 0 | K169: 0 | L169: 0 | M169: 5.6 | N169: 206.3 | O169: 16.8 | P169: 16.8 | Q169: 02:40:00
B170: 18 | C170: 90 | D170: 18 | E170: 1.4 | F170: 1.8 | G170: 53 | H170: 1024.7 | I170: 0 | J170: 0 | K170: 0 | L170: 0 | M170: 5.6 | N170: 206.3 | O170: 16.8 | P170: 16.8 | Q170: 02:41:00
B171: 18 | C171: 90 | D171: 18 | E171: 0 | F171: 0 | G171: 53 | H171: 1024.9 | I171: 0 | J171: 0 | K171: 0 | L171: 0 | M171: 5.6 | N171: 206.3 | O171: 16.8 | P171: 16.8 | Q171: 02:42:00
B172: 17.9 | C172: 90 | D172: 17.9 | E172: 0.4 | F172: 1.8 | G172: 53 | H172: 1025 | I172: 0 | J172: 0 | K172: 0 | L172: 0 | M172: 5.6 | N172: 206.3 | O172: 16.8 | P172: 16.8 | Q172: 02:43:00
B173: 17.9 | C173: 90 | D173: 17.9 | E173: 0 | F173: 0 | G173: 53 | H173: 1025 | I173: 0 | J173: 0 | K173: 0 | L173: 0 | M173: 5.6 | N173: 206.3 | O173: 16.7 | P173: 16.8 | Q173: 02:44:00
B174: 17.9 | C174: 90 | D174: 17.9 | E174: 0 | F174: 0 | G174: 53 | H174: 1024.9 | I174: 0 | J174: 0 | K174: 0 | L174: 0 | M174: 5.6 | N174: 206.3 | O174: 16.7 | P174: 16.7 | Q174: 02:45:00
B175: 17.8 | C175: 90 | D175: 17.8 | E175: 0 | F175: 0 | G175: 53 | H175: 1024.9 | I175: 0 | J175: 0 | K175: 0 | L175: 0 | M175: 5.6 | N175: 206.3 | O175: 16.7 | P175: 16.7 | Q175: 02:46:00
B176: 17.8 | C176: 90 | D176: 17.8 | E176: 0 | F176: 0 | G176: 53 | H176: 1025.1 | I176: 0 | J176: 0 | K176: 0 | L176: 0 | M176: 5.6 | N176: 206.3 | O176: 16.6 | P176: 16.7 | Q176: 02:47:00
B177: 17.8 | C177: 90 | D177: 17.8 | E177: 0 | F177: 0 | G177: 53 | H177: 1025 | I177: 0 | J177: 0 | K177: 0 | L177: 0 | M177: 5.6 | N177: 206.3 | O177: 16.6 | P177: 16.6 | Q177: 02:48:00
B178: 17.8 | C178: 91 | D178: 17.8 | E178: 0 | F178: 0 | G178: 53 | H178: 1024.9 | I178: 0 | J178: 0 | K178: 0 | L178: 0 | M178: 5.6 | N178: 206.3 | O178: 16.5 | P178: 16.6 | Q178: 02:49:00
B179: 17.8 | C179: 90 | D179: 17.8 | E179: 0 | F179: 0 | G179: 53 | H179: 1024.8 | I179: 0 | J179: 0 | K179: 0 | L179: 0 | M179: 5.6 | N179: 206.3 | O179: 16.5 | P179: 16.5 | Q179: 02:50:00
B180: 17.7 | C180: 91 | D180: 17.7 | E180: 0 | F180: 0 | G180: 53 | H180: 1024.8 | I180: 0 | J180: 0 | K180: 0 | L180: 0 | M180: 5.6 | N180: 206.3 | O180: 16.5 | P180: 16.5 | Q180: 02:51:00
B181: 17.7 | C181: 91 | D181: 17.7 | E181: 0 | F181: 0 | G181: 53 | H181: 1024.8 | I181: 0 | J181: 0 | K181: 0 | L181: 0 | M181: 5.6 | N181: 206.3 | O181: 16.4 | P181: 16.4 | Q181: 02:52:00
B182: 17.7 | C182: 91 | D182: 17.7 | E182: 0 | F182: 0 | G182: 53 | H182: 1025.1 | I182: 0 | J182: 0 | K182: 0 | L182: 0 | M182: 5.6 | N182: 206.3 | O182: 16.4 | P182: 16.4 | Q182: 02:53:00
B183: 17.7 | C183: 90 | D183: 17.7 | E183: 0 | F183: 0 | G183: 53 | H183: 1024.7 | I183: 0 | J183: 0 | K183: 0 | L183: 0 | M183: 5.6 | N183: 206.3 | O183: 16.3 | P183: 16.3 | Q183: 02:54:00
B184: 17.7 | C184: 90 | D184: 17.7 | E184: 0 | F184: 0 | G184: 53 | H184: 1024.9 | I184: 0 | J184: 0 | K184: 0 | L184: 0 | M184: 5.6 | N184: 206.3 | O184: 16.3 | P184: 16.3 | Q184: 02:55:00
B185: 17.6 | C185: 91 | D185: 17.6 | E185: 0 | F185: 0 | G185: 53 | H185: 1024.8 | I185: 0 | J185: 0 | K185: 0 | L185: 0 | M185: 5.6 | N185: 206.3 | O185: 16.2 | P185: 16.3 | Q185: 02:56:00
B186: 17.6 | C186: 91 | D186: 17.6 | E186: 0 | F186: 0 | G186: 53 | H186: 1024.8 | I186: 0 | J186: 0 | K186: 0 | L186: 0 | M186: 5.6 | N186: 206.3 | O186: 16.2 | P186: 16.3 | Q186: 02:57:00
B187: 17.6 | C187: 91 | D187: 17.6 | E187: 0 | F187: 0 | G187: 53 | H187: 1024.9 | I187: 0 | J187: 0 | K187: 0 | L187: 0 | M187: 5.6 | N187: 206.3 | O187: 16.2 | P187: 16.3 | Q187: 02:58:00
B188: 17.5 | C188: 91 | D188: 17.5 | E188: 0 | F188: 0 | G188: 53 | H188: 1024.9 | I188: 0 | J188: 0 | K188: 0 | L188: 0 | M188: 5.6 | N188: 206.3 | O188: 16.2 | P188: 16.2 | Q188: 02:59:00
B189: 17.5 | C189: 91 | D189: 17.5 | E189: 0 | F189: 0 | G189: 53 | H189: 1024.8 | I189: 0 | J189: 0 | K189: 0 | L189: 0 | M189: 5.6 | N189: 206.3 | O189: 16.2 | P189: 16.2 | Q189: 03:00:00
B190: 17.5 | C190: 91 | D190: 17.5 | E190: 0 | F190: 0 | G190: 53 | H190: 1024.8 | I190: 0 | J190: 0 | K190: 0 | L190: 0 | M190: 5.6 | N190: 206.3 | O190: 16.2 | P190: 16.2 | Q190: 03:01:00
B191: 17.5 | C191: 91 | D191: 17.5 | E191: 0 | F191: 0 | G191: 53 | H191: 1024.8 | I191: 0 | J191: 0 | K191: 0 | L191: 0 | M191: 5.6 | N191: 206.3 | O191: 16.1 | P191: 16.1 | Q191: 03:02:00
B192: 17.5 | C192: 91 | D192: 17.5 | E192: 0 | F192: 0 | G192: 53 | H192: 1024.8 | I192: 0 | J192: 0 | K192: 0 | L192: 0 | M192: 5.6 | N192: 206.3 | O192: 16.1 | P192: 16.1 | Q192: 03:03:00
B193: 17.4 | C193: 91 | D193: 17.4 | E193: 0 | F193: 0 | G193: 53 | H193: 1024.9 | I193: 0 | J193: 0 | K193: 0 | L193: 0 | M193: 5.6 | N193: 206.3 | O193: 16.1 | P193: 16.1 | Q193: 03:04:00
B194: 17.4 | C194: 91 | D194: 17.4 | E194: 0 | F194: 0 | G194: 53 | H194: 1024.6 | I194: 0 | J194: 0 | K194: 0 | L194: 0 | M194: 5.6 | N194: 206.3 | O194: 16.1 | P194: 16 | Q194: 03:05:00
B195: 17.3 | C195: 91 | D195: 17.3 | E195: 0 | F195: 0 | G195: 53 | H195: 1024.8 | I195: 0 | J195: 0 | K195: 0 | L195: 0 | M195: 5.6 | N195: 206.3 | O195: 16.1 | P195: 16 | Q195: 03:06:00
B196: 17.3 | C196: 91 | D196: 17.3 | E196: 0 | F196: 0 | G196: 53 | H196: 1025 | I196: 0 | J196: 0 | K196: 0 | L196: 0 | M196: 5.6 | N196: 206.3 | O196: 16 | P196: 16 | Q196: 03:07:00
B197: 17.4 | C197: 91 | D197: 17.4 | E197: 0 | F197: 0 | G197: 53 | H197: 1024.6 | I197: 0 | J197: 0 | K197: 0 | L197: 0 | M197: 5.6 | N197: 206.3 | O197: 16 | P197: 15.9 | Q197: 03:08:00
B198: 17.4 | C198: 91 | D198: 17.4 | E198: 0 | F198: 0 | G198: 53 | H198: 1024.5 | I198: 0 | J198: 0 | K198: 0 | L198: 0 | M198: 5.6 | N198: 206.3 | O198: 16 | P198: 15.9 | Q198: 03:09:00
B199: 17.3 | C199: 91 | D199: 17.3 | E199: 0 | F199: 0 | G199: 53 | H199: 1024.8 | I199: 0 | J199: 0 | K199: 0 | L199: 0 | M199: 5.6 | N199: 206.3 | O199: 15.9 | P199: 15.9 | Q199: 03:10:00
B200: 17.3 | C200: 91 | D200: 17.3 | E200: 0 | F200: 0 | G200: 53 | H200: 1024.6 | I200: 0 | J200: 0 | K200: 0 | L200: 0 | M200: 5.6 | N200: 206.3 | O200: 15.9 | P200: 15.8 | Q200: 03:11:00
... 1249 more rows

Sheet GRAPHIQUES
F4: ²
C17: Donnéees UV =RELEVÉS!$I$369:$I$1334
C18: Donnéees heures =RELEVÉS!$Q$369:$Q$1334
C19: Données Soleil =RELEVÉS!$T$370:$T$1333
C20: Avoir une courbe des UV sur ce graphique
C21: Chaleur et UV
